fUSD/lending_fUSD_20250212
["ID","MTS","AMOUNT","RATE_DAILY","PERIOD"]
[352898037,1739394637283,-500.0,0.00016555,2]
[352898039,1739394637295,-500.0,0.00016555,2]
[352898041,1739394637304,-500.0,0.00016555,2]
[352898043,1739394637314,-500.0,0.00016555,2]
[352898045,1739394637325,-500.0,0.00016555,2]
[352898047,1739394637335,-500.0,0.00016555,2]
[352898048,1739394637344,-500.0,0.00016555,2]
[352898051,1739394637355,-500.0,0.00016555,2]
[352898053,1739394637366,-500.0,0.00016555,2]
[352898054,1739394637376,-500.0,0.00016555,2]
[352898056,1739394637385,-751.73,0.00016555,2]
[352898058,1739394637395,-500.0,0.00016555,2]
[352898060,1739394637404,-500.0,0.00016555,2]
[352898063,1739394637414,-500.0,0.00016555,2]
[352898065,1739394637423,-500.0,0.00016555,2]
[352898067,1739394637433,-668.0,0.00016555,2]
[352898069,1739394637442,-500.0,0.00016555,2]
[352898071,1739394637452,-500.0,0.00016555,2]
[352898072,1739394637461,-500.0,0.00016555,2]
[352898074,1739394637471,-500.0,0.00016555,2]
[352898076,1739394637481,-500.0,0.00016555,2]
[352898079,1739394637491,-500.0,0.00016555,2]
[352898080,1739394637501,-500.0,0.00016555,2]
[352898083,1739394637511,-500.0,0.00016555,2]
[352898085,1739394637522,-500.0,0.00016555,2]
[352898087,1739394637531,-500.0,0.00016555,2]
[352898089,1739394637542,-500.0,0.00016555,2]
[352898091,1739394637551,-804.52,0.00016555,2]
[352898093,1739394637561,-500.0,0.00016555,2]
[352898095,1739394637571,-500.0,0.00016555,2]
[352898097,1739394637580,-500.0,0.00016555,2]
[352898099,1739394637590,-500.0,0.00016555,2]
[352898101,1739394637601,-500.0,0.00016555,2]
[352898103,1739394637611,-500.0,0.00016555,2]
[352898105,1739394637620,-434.85644752,0.00016555,2]
[352898107,1739394637630,-535.91340622,0.00016555,2]
[352898108,1739394637639,-500.0,0.00016555,2]
[352898110,1739394637649,-376.8775227,0.00016555,2]
[352898111,1739394637658,-2395.3,0.00016555,2]
[352898112,1739394637667,-500.0,0.00016555,2]
[352898113,1739394637676,-500.0,0.00016555,2]
[352898114,1739394637686,-430.72981043,0.00016555,2]
[352898115,1739394637695,-500.0,0.00016555,2]
[352898116,1739394637704,-500.0,0.00016555,2]
[352898117,1739394637715,-500.0,0.00016555,2]
[352898118,1739394637725,-371.29792101,0.00016555,2]
[352898119,1739394637734,-500.0,0.00016555,2]
[352898120,1739394637744,-500.0,0.00016555,2]
[352898121,1739394637754,-500.0,0.00016555,2]
[352898122,1739394637763,-500.0,0.00016555,2]
[352898123,1739394637773,-500.0,0.00016555,2]
[352898124,1739394637782,-500.0,0.00016555,2]
[352898125,1739394637792,-500.0,0.00016555,2]
[352898126,1739394637802,-505.7,0.00016555,2]
[352898127,1739394637811,-500.0,0.00016555,2]
[352898128,1739394637820,-501.21391441,0.00016555,2]
[352898129,1739394637830,-500.0,0.00016555,2]
[352898130,1739394637841,-500.0,0.00016555,2]
[352898131,1739394637852,-500.0,0.00016555,2]
[352898132,1739394637862,-500.0,0.00016555,2]
[352898133,1739394637873,-500.0,0.00016555,2]
[352898134,1739394637882,-500.0,0.00016555,2]
[352898135,1739394637893,-500.0,0.00016555,2]
[352898136,1739394637902,-500.0,0.00016555,2]
[352898137,1739394637912,-505.32430455,0.00016555,2]
[352898138,1739394637921,-500.0,0.00016555,2]
[352898139,1739394637931,-500.0,0.00016555,2]
[352898140,1739394637940,-500.0,0.00016555,2]
[352898141,1739394637950,-500.0,0.00016555,2]
[352898142,1739394637960,-579.26485516,0.00016555,2]
[352898143,1739394637969,-500.0,0.00016555,2]
[352898144,1739394637979,-500.0,0.00016555,2]
[352898145,1739394637990,-752.83,0.00016555,2]
[352898146,1739394637999,-420.18691896,0.00016555,2]
[352898148,1739394638008,-500.0,0.00016555,2]
[352898149,1739394638019,-500.0,0.00016555,2]
[352898150,1739394638030,-500.0,0.00016555,2]
[352898152,1739394638040,-500.0,0.00016555,2]
[352898153,1739394638050,-500.0,0.00016555,2]
[352898154,1739394638059,-500.0,0.00016555,2]
[352898157,1739394638069,-500.0,0.00016555,2]
[352898159,1739394638079,-500.0,0.00016555,2]
[352898162,1739394638088,-500.0,0.00016555,2]
[352898163,1739394638098,-500.0,0.00016555,2]
[352898165,1739394638107,-400.0,0.00016555,2]
[352898166,1739394638117,-720.03,0.00016555,2]
[352898167,1739394638126,-500.0,0.00016555,2]
[352898169,1739394638136,-447.51075857,0.00016555,2]
[352898171,1739394638146,-508.88973151,0.00016555,2]
[352898173,1739394638156,-500.0,0.00016555,2]
[352898175,1739394638166,-500.0,0.00016555,2]
[352898177,1739394638180,-500.0,0.00016555,2]
[352898179,1739394638190,-500.0,0.00016555,2]
[352898181,1739394638199,-763.56,0.00016555,2]
[352898183,1739394638209,-500.0,0.00016555,2]
[352898185,1739394638218,-500.0,0.00016555,2]
[352898186,1739394638228,-500.0,0.00016555,2]
[352898187,1739394638237,-500.0,0.00016555,2]
[352898188,1739394638247,-500.0,0.00016555,2]
[352898189,1739394638256,-500.0,0.00016555,2]
[352898190,1739394638265,-500.0,0.00016555,2]
[352898191,1739394638275,-500.0,0.00016555,2]
[352898192,1739394638286,-501.54637186,0.00016555,2]
[352898193,1739394638300,-768.5,0.00016555,2]
[352898194,1739394638310,-500.0,0.00016555,2]
[352898195,1739394638320,-500.0,0.00016555,2]
[352898196,1739394638454,-500.0,0.00016555,2]
[352898197,1739394638465,-500.0,0.00016555,2]
[352898198,1739394638475,-500.0,0.00016555,2]
[352898199,1739394638484,-500.0,0.00016555,2]
[352898200,1739394638494,-513.37071642,0.00016555,2]
[352898201,1739394638503,-500.0,0.00016555,2]
[352898202,1739394638513,-500.0,0.00016555,2]
[352898203,1739394638523,-500.0,0.00016555,2]
[352898204,1739394638532,-500.0,0.00016555,2]
[352898205,1739394638542,-500.0,0.00016555,2]
[352898207,1739394638552,-500.0,0.00016555,2]
[352898209,1739394638562,-500.0,0.00016555,2]
[352898211,1739394638572,-500.0,0.00016555,2]
[352898213,1739394638581,-500.0,0.00016555,2]
[352898215,1739394638591,-822.94,0.00016555,2]
[352898217,1739394638600,-500.0,0.00016555,2]
[352898219,1739394638610,-500.0,0.00016555,2]
[352898221,1739394638619,-500.0,0.00016555,2]
[352898223,1739394638628,-500.0,0.00016555,2]
[352898225,1739394638637,-500.0,0.00016555,2]
[352898227,1739394638646,-500.0,0.00016555,2]
[352898229,1739394638655,-500.0,0.00016555,2]
[352898231,1739394638665,-500.0,0.00016555,2]
[352898233,1739394638674,-500.0,0.00016555,2]
[352898235,1739394638683,-969.73,0.00016555,2]
[352898237,1739394638692,-500.0,0.00016555,2]
[352898239,1739394638702,-500.0,0.00016555,2]
[352898241,1739394638711,-500.0,0.00016555,2]
[352898243,1739394638720,-500.0,0.00016555,2]
[352898245,1739394638730,-500.0,0.00016555,2]
[352898248,1739394638738,-500.0,0.00016555,2]
[352898251,1739394638748,-772.03,0.00016555,2]
[352898253,1739394638757,-643.63,0.00016555,2]
[352898256,1739394638766,-500.0,0.00016555,2]
[352898258,1739394638775,-500.0,0.00016555,2]
[352898260,1739394638785,-500.0,0.00016555,2]
[352898262,1739394638794,-777.34,0.00016555,2]
[352898264,1739394638803,-500.0,0.00016555,2]
[352898266,1739394638812,-500.0,0.00016555,2]
[352898268,1739394638823,-500.0,0.00016555,2]
[352898270,1739394638832,-500.0,0.00016555,2]
[352898272,1739394638841,-500.0,0.00016555,2]
[352898274,1739394638850,-500.0,0.00016555,2]
[352898276,1739394638859,-500.0,0.00016555,2]
[352898278,1739394638869,-500.0,0.00016555,2]
[352898279,1739394638878,-500.0,0.00016555,2]
[352898280,1739394638887,-500.0,0.00016555,2]
[352898281,1739394638896,-500.0,0.00016555,2]
[352898282,1739394638905,-814.08,0.00016555,2]
[352898283,1739394638914,-500.0,0.00016555,2]
[352898284,1739394638923,-500.0,0.00016555,2]
[352898285,1739394638932,-500.0,0.00016555,2]
[352898286,1739394638942,-218.68835765,0.00016555,2]
[352898287,1739394638951,-500.0,0.00016555,2]
[352898288,1739394638960,-500.0,0.00016555,2]
[352898290,1739394638970,-500.0,0.00016555,2]
[352898292,1739394638979,-500.0,0.00016555,2]
[352898294,1739394638988,-515.61156187,0.00016555,2]
[352898296,1739394638998,-937.69,0.00016555,2]
[352898298,1739394639007,-500.0,0.00016555,2]
[352898300,1739394639016,-1200.0,0.00016555,2]
[352898302,1739394639026,-500.0,0.00016555,2]
[352898304,1739394639035,-502.45588604,0.00016555,2]
[352898306,1739394639044,-2621.66,0.00016555,2]
[352898308,1739394639053,-500.0,0.00016555,2]
[352898310,1739394639063,-500.0,0.00016555,2]
[352898312,1739394639073,-700.86,0.00016555,2]
[352898314,1739394639082,-819.42,0.00016555,2]
[352898316,1739394639091,-500.0,0.00016555,2]
[352898318,1739394639101,-500.0,0.00016555,2]
[352898320,1739394639111,-500.0,0.00016555,2]
[352898322,1739394639120,-601.71558488,0.00016555,2]
[352898324,1739394639130,-500.0,0.00016555,2]
[352898326,1739394639139,-500.0,0.00016555,2]
[352898328,1739394639148,-500.0,0.00016555,2]
[352898330,1739394639157,-500.0,0.00016555,2]
[352898332,1739394639167,-1586.82,0.00016555,2]
[352898334,1739394639176,-500.0,0.00016555,2]
[352898336,1739394639186,-592.01,0.00016555,2]
[352898338,1739394639195,-500.0,0.00016555,2]
[352898339,1739394639205,-500.0,0.00016555,2]
[352898341,1739394639214,-500.0,0.00016555,2]
[352898344,1739394639224,-500.0,0.00016555,2]
[352898346,1739394639234,-500.0,0.00016555,2]
[352898348,1739394639243,-500.0,0.00016555,2]
[352898350,1739394639253,-500.0,0.00016555,2]
[352898352,1739394639263,-2274.95,0.00016555,2]
[352898354,1739394639272,-908.81,0.00016555,2]
[352898356,1739394639282,-500.0,0.00016555,2]
[352898358,1739394639293,-500.0,0.00016555,2]
[352898360,1739394639304,-500.0,0.00016555,2]
[352898362,1739394639314,-500.0,0.00016555,2]
[352898364,1739394639324,-500.0,0.00016555,2]
[352898366,1739394639334,-500.0,0.00016555,2]
[352898368,1739394639345,-500.0,0.00016555,2]
[352898370,1739394639354,-772.59,0.00016555,2]
[352898372,1739394639363,-2406.06,0.00016555,2]
[352898374,1739394639375,-535.89,0.00016555,2]
[352898376,1739394639384,-500.0,0.00016555,2]
[352898378,1739394639392,-500.0,0.00016555,2]
[352898379,1739394639402,-1530.09,0.00016555,2]
[352898382,1739394639412,-500.0,0.00016555,2]
[352898384,1739394639421,-500.0,0.00016555,2]
[352898386,1739394639430,-500.0,0.00016555,2]
[352898387,1739394639439,-1272.01,0.00016555,2]
[352898389,1739394639448,-500.0,0.00016555,2]
[352898391,1739394639458,-500.0,0.00016555,2]
[352898394,1739394639468,-602.9,0.00016555,2]
[352898396,1739394639478,-500.0,0.00016555,2]
[352898398,1739394639487,-500.0,0.00016555,2]
[352898400,1739394639497,-501.60911878,0.00016555,2]
[352898401,1739394639506,-500.0,0.00016555,2]
[352898404,1739394639516,-1573.61,0.00016555,2]
[352898406,1739394639525,-500.0,0.00016555,2]
[352898408,1739394639535,-333.3560105,0.00016555,2]
[352898410,1739394639544,-500.0,0.00016555,2]
[352898412,1739394639553,-500.0,0.00016555,2]
[352898414,1739394639562,-500.0,0.00016555,2]
[352898416,1739394639572,-500.0,0.00016555,2]
[352898417,1739394639582,-500.0,0.00016555,2]
[352898419,1739394639591,-1353.03,0.00016555,2]
[352898421,1739394639600,-500.0,0.00016555,2]
[352898423,1739394639610,-387.58597967,0.00016555,2]
[352898425,1739394639620,-438.8575109,0.00016555,2]
[352898427,1739394639629,-500.0,0.00016555,2]
[352898429,1739394639638,-1411.16,0.00016555,2]
[352898431,1739394639648,-500.0,0.00016555,2]
[352898433,1739394639657,-500.0,0.00016555,2]
[352898435,1739394639667,-500.0,0.00016555,2]
[352898437,1739394639676,-1346.09,0.00016555,2]
[352898439,1739394639685,-500.0,0.00016555,2]
[352898441,1739394639695,-500.0,0.00016555,2]
[352898443,1739394639705,-500.0,0.00016555,2]
[352898445,1739394639714,-500.0,0.00016555,2]
[352898447,1739394639724,-500.0,0.00016555,2]
[352898449,1739394639734,-500.0,0.00016555,2]
[352898451,1739394639743,-502.65933741,0.00016555,2]
[352898452,1739394639753,-500.0,0.00016555,2]
[352898455,1739394639763,-500.0,0.00016555,2]
[352898456,1739394639772,-500.0,0.00016555,2]
[352898458,1739394639782,-500.0,0.00016555,2]
[352898461,1739394639792,-500.0,0.00016555,2]
[352898463,1739394639801,-500.0,0.00016555,2]
[352898465,1739394639811,-501.57516278,0.00016555,2]
[352898467,1739394639821,-1122.08,0.00016555,2]
[352898468,1739394639831,-500.0,0.00016555,2]
[352898471,1739394639840,-1523.38,0.00016555,2]
[352898472,1739394639850,-500.0,0.00016555,2]
[352898474,1739394639860,-500.0,0.00016555,2]
[352898477,1739394639869,-500.0,0.00016555,2]
[352898479,1739394639879,-500.0,0.00016555,2]
[352898481,1739394639889,-500.0,0.00016555,2]
[352898483,1739394639899,-853.53,0.00016555,2]
[352898485,1739394639908,-500.0,0.00016555,2]
[352898487,1739394639918,-509.14,0.00016555,2]
[352898489,1739394639928,-500.0,0.00016555,2]
[352898491,1739394639938,-500.0,0.00016555,2]
[352898493,1739394639947,-501.33,0.00016555,2]
[352898495,1739394639957,-500.0,0.00016555,2]
[352898497,1739394639968,-526.32,0.00016555,2]
[352898499,1739394639977,-500.0,0.00016555,2]
[352898501,1739394639987,-500.0,0.00016555,2]
[352898503,1739394639996,-500.0,0.00016555,2]
[352898505,1739394640005,-500.0,0.00016555,2]
[352898506,1739394640014,-500.0,0.00016555,2]
[352898508,1739394640023,-500.0,0.00016555,2]
[352898510,1739394640032,-500.0,0.00016555,2]
[352898512,1739394640043,-500.0,0.00016555,2]
[352898515,1739394640054,-500.0,0.00016555,2]
[352898517,1739394640064,-500.0,0.00016555,2]
[352898520,1739394640075,-500.0,0.00016555,2]
[352898523,1739394640086,-673.7,0.00016555,2]
[352898539,1739394640225,-500.0,0.00016555,2]
[352898542,1739394640236,-500.0,0.00016555,2]
[352898544,1739394640246,-500.0,0.00016555,2]
[352898545,1739394640255,-500.0,0.00016555,2]
[352898548,1739394640265,-500.0,0.00016555,2]
[352898550,1739394640275,-860.89,0.00016555,2]
[352898551,1739394640284,-500.0,0.00016555,2]
[352898553,1739394640295,-500.0,0.00016555,2]
[352898555,1739394640305,-500.0,0.00016555,2]
[352898557,1739394640315,-500.0,0.00016555,2]
[352898559,1739394640325,-500.0,0.00016555,2]
[352898562,1739394640336,-536.32,0.00016555,2]
[352898564,1739394640345,-500.0,0.00016555,2]
[352898566,1739394640355,-500.0,0.00016555,2]
[352898568,1739394640365,-518.19,0.00016555,2]
[352898569,1739394640375,-535.86,0.00016555,2]
[352898571,1739394640385,-500.0,0.00016555,2]
[352898573,1739394640395,-408.57602487,0.00016555,2]
[352898575,1739394640405,-500.0,0.00016555,2]
[352898577,1739394640415,-500.0,0.00016555,2]
[352898580,1739394640426,-500.0,0.00016555,2]
[352898582,1739394640436,-500.0,0.00016555,2]
[352898584,1739394640447,-500.69518306,0.00016555,2]
[352898585,1739394640457,-500.0,0.00016555,2]
[352898588,1739394640466,-500.0,0.00016555,2]
[352898590,1739394640477,-151.79094384,0.00016555,2]
[352898592,1739394640486,-500.0,0.00016555,2]
[352898593,1739394640496,-500.0,0.00016555,2]
[352898595,1739394640505,-500.0,0.00016555,2]
[352898597,1739394640515,-500.0,0.00016555,2]
[352898599,1739394640524,-500.0,0.00016555,2]
[352898601,1739394640534,-511.21,0.00016555,2]
[352898603,1739394640543,-500.0,0.00016555,2]
[352898605,1739394640553,-1161.53,0.00016555,2]
[352898608,1739394640562,-500.0,0.00016555,2]
[352898610,1739394640586,-500.0,0.00016555,2]
[352898612,1739394640597,-500.0,0.00016555,2]
[352898614,1739394640607,-500.0,0.00016555,2]
[352898617,1739394640617,-500.0,0.00016555,2]
[352898619,1739394640628,-520.48,0.00016555,2]
[352898621,1739394640638,-500.0,0.00016555,2]
[352898623,1739394640648,-500.0,0.00016555,2]
[352898625,1739394640658,-963.2,0.00016555,2]
[352898627,1739394640668,-362.82646723,0.00016555,2]
[352898629,1739394640678,-500.0,0.00016555,2]
[352898631,1739394640688,-500.0,0.00016555,2]
[352898633,1739394640698,-500.0,0.00016555,2]
[352898635,1739394640709,-1166.72,0.00016555,2]
[352898637,1739394640719,-500.0,0.00016555,2]
[352898638,1739394640731,-500.0,0.00016555,2]
[352898639,1739394640741,-500.0,0.00016555,2]
[352898640,1739394640751,-500.0,0.00016555,2]
[352898641,1739394640762,-508.73,0.00016555,2]
[352898643,1739394640772,-500.0,0.00016555,2]
[352898646,1739394640783,-500.0,0.00016555,2]
[352898648,1739394640792,-500.0,0.00016555,2]
[352898650,1739394640802,-500.0,0.00016555,2]
[352898651,1739394640811,-500.0,0.00016555,2]
[352898654,1739394640821,-794.52,0.00016555,2]
[352898656,1739394640831,-562.568745,0.00016555,2]
[352898658,1739394640842,-980.92,0.00016555,2]
[352898660,1739394640852,-500.0,0.00016555,2]
[352898662,1739394640862,-319.3860485,0.00016555,2]
[352898664,1739394640872,-500.0,0.00016556,2]
[352898666,1739394640882,-500.0,0.00016556,2]
[352898668,1739394640893,-500.0,0.00016556,2]
[352898670,1739394640903,-1116.54,0.00016556,2]
[352898672,1739394640913,-943.93,0.00016556,2]
[352898674,1739394640923,-911.48,0.00016556,2]
[352898676,1739394640934,-500.0,0.00016556,2]
[352898678,1739394640944,-500.0,0.00016556,2]
[352898680,1739394640954,-500.0,0.00016556,2]
[352898682,1739394640964,-4937.23,0.00016556,2]
[352898685,1739394640975,-999.28,0.00016556,2]
[352898687,1739394640985,-863.88,0.00016556,2]
[352898689,1739394640995,-736.0,0.00016556,2]
[352898691,1739394641005,-1511.02,0.00016556,2]
[352898693,1739394641015,-500.0,0.00016556,2]
[352898695,1739394641025,-500.0,0.00016556,2]
[352898698,1739394641035,-607.92,0.00016556,2]
[352898700,1739394641046,-1392.53,0.00016556,2]
[352898702,1739394641056,-1582.98,0.00016556,2]
[352898705,1739394641071,-1025.51,0.00016556,2]
[352898707,1739394641082,-1271.59,0.00016556,2]
[352898709,1739394641093,-500.0,0.00016556,2]
[352898711,1739394641103,-1467.11,0.00016556,2]
[352898713,1739394641113,-1462.88,0.00016556,2]
[352898715,1739394641123,-500.0,0.00016556,2]
[352898717,1739394641134,-251.15564281,0.00016557,2]
[352898719,1739394641145,-883.0,0.00016557,2]
[352898721,1739394641155,-508.62,0.00016557,2]
[352898723,1739394641165,-185340.13897906,0.00016557,5]
[352898728,1739394641196,-6505.60278513,0.00016557,5]
[352898730,1739394641208,-510278.156,0.00016557,5]
[352898732,1739394641221,-284.24426,0.00016557,5]
[352898733,1739394641234,-10112.72907165,0.00016557,5]
[352898734,1739394641247,-30462.89483399,0.00016557,5]
[352898735,1739394641260,-613.7775572,0.00016557,5]
[352898736,1739394641272,-340.97585375,0.00016557,5]
[352898737,1739394641284,-9605.0,0.00016557,5]
[352898738,1739394641301,-262.18282224,0.00016557,5]
[352898819,1739394642552,-253.1169299,0.00016495,2]
[352898820,1739394642562,-500.0,0.00016552,2]
[352898821,1739394642572,-119.4330701,0.00016553,2]
[352898822,1739394642584,-380.5669299,0.00016553,2]
[352898823,1739394642593,-500.0,0.00016553,2]
[352898824,1739394642603,-251.29700268,0.00016555,2]
[352898825,1739394642615,-248.70299732,0.00016555,2]
[352898826,1739394642624,-500.0,0.00016555,2]
[352898827,1739394642634,-500.0,0.00016555,2]
[352898828,1739394642657,-312.19968887,0.00016555,2]
[352898829,1739394642670,-187.80031113,0.00016555,2]
[352898830,1739394642680,-46734.27086983,0.00016557,3]
[352898831,1739394642696,-1466.06623931,0.00016557,3]
[352898832,1739394642708,-19300.74953765,0.00016557,3]
[352898833,1739394642720,-614.1916537,0.00016557,3]
[352898834,1739394642738,-38771.02365332,0.00016557,3]
[352898835,1739394642750,-5853.38940005,0.00016557,3]
[352898836,1739394642762,-347.678414,0.00016557,3]
[352898837,1739394642781,-2608.485,0.00016557,3]
[352898838,1739394642794,-2989.099368,0.00016557,3]
[352898839,1739394642807,-4230.66,0.00016557,3]
[352898840,1739394642818,-5547.74016914,0.00016557,3]
[352898841,1739394642831,-46006.19555478,0.00016557,3]
[352898842,1739394642843,-20606.88732503,0.00016557,3]
[352898843,1739394642855,-1357.6702831,0.00016557,3]
[352898844,1739394642868,-892.46318179,0.00016557,3]
[352898845,1739394642880,-6297.02998929,0.00016557,3]
[352898860,1739394643339,-500.0,0.00016552,2]
[352898861,1739394643349,-500.0,0.00016555,2]
[352898862,1739394643359,-500.0,0.00016555,2]
[352898863,1739394643369,-500.0,0.00016555,2]
[352898864,1739394643381,-450.16000001,0.00016557,3]
[352898865,1739394643394,-30400.66008251,0.00016557,3]
[352898866,1739394643406,-754.72951032,0.00016557,3]
[352898867,1739394643417,-1296.92988791,0.00016557,3]
[352898868,1739394643429,-39526.62109171,0.00016557,3]
[352898869,1739394643440,-1142.87605794,0.00016557,3]
[352898870,1739394643452,-518.72365054,0.00016557,3]
[352898871,1739394643464,-525.27040299,0.00016557,3]
[352898872,1739394643475,-266.6539997,0.00016557,3]
[352898873,1739394643517,-4132.11995892,0.00016557,3]
[352898874,1739394643529,-279.42666798,0.00016557,3]
[352898875,1739394643540,-34940.26146743,0.00016557,3]
[352898876,1739394643552,-60101.50377924,0.00016557,3]
[352898877,1739394643561,-126369.71812529,0.00016557,5]
[352898878,1739394643574,-487.78182571,0.00016557,5]
[352898879,1739394643586,-415.405,0.00016557,5]
[352898880,1739394643598,-868.28419264,0.00016557,5]
[352898881,1739394643611,-1625.9285623,0.00016557,5]
[352898882,1739394643623,-10617.71020126,0.00016557,5]
[352898883,1739394643640,-37316.10938156,0.00016557,5]
[352898884,1739394643652,-268.032,0.00016557,5]
[352898885,1739394643664,-54957.72805995,0.00016557,5]
[352898886,1739394643676,-1009.05393255,0.00016557,5]
[352898887,1739394643688,-468.705,0.00016557,5]
[352898888,1739394643701,-1181.77775169,0.00016557,5]
[352898890,1739394643713,-308.61855386,0.00016557,5]
[352898902,1739394643986,-500.0,0.00016553,2]
[352898903,1739394643996,-500.0,0.00016553,2]
[352898904,1739394644007,-506.96,0.00016554,2]
[352898905,1739394644017,-500.0,0.00016555,2]
[352898906,1739394644027,-501.33412495,0.00016555,2]
[352898907,1739394644037,-500.0,0.00016555,2]
[352898908,1739394644047,-500.0,0.00016555,2]
[352898909,1739394644057,-10994.45587505,0.00016557,5]
[352898910,1739394644070,-963.93402,0.00016557,5]
[352898911,1739394644093,-501.57635663,0.00016555,2]
[352898912,1739394644103,-471.00274034,0.00016557,5]
[352898913,1739394644114,-325207.32954341,0.00016557,5]
[352898914,1739394644126,-6998.244741,0.00016557,5]
[352898915,1739394644142,-563054.37044485,0.00016557,5]
[352898916,1739394644154,-1279.41205484,0.00016557,5]
[352898917,1739394644166,-1026.48541,0.00016557,5]
[352898918,1739394644178,-42792.96119441,0.00016557,5]
[352898919,1739394644190,-29819.20629642,0.00016557,5]
[352898920,1739394644203,-526.63756236,0.00016557,5]
[352898921,1739394644214,-324.70399968,0.00016557,5]
[352898922,1739394644226,-765.572688,0.00016557,5]
[352898923,1739394644239,-2516.16206871,0.00016557,5]
[352898924,1739394644251,-2582.5045905,0.00016557,5]
[352898925,1739394644263,-347.60706614,0.00016557,5]
[352898926,1739394644276,-2009967.3526137,0.00016557,5]
[352898927,1739394644288,-1170303.02355053,0.00016557,5]
[352898928,1739394644304,-35854.47,0.00016557,5]
[352898929,1739394644315,-24385.6433,0.00016557,5]
[352898935,1739394646280,-596.54,0.00016553,2]
[352898937,1739394646290,-230.51557436,0.00016553,2]
[352898938,1739394646304,-2094.71,0.00016553,2]
[352898939,1739394646314,-500.0,0.00016555,2]
[352898940,1739394646324,-500.0,0.00016555,2]
[352898941,1739394646333,-801.0,0.00016557,2]
[352898942,1739394646345,-20604.39594198,0.00016557,5]
[352898943,1739394646358,-324.7277276,0.00016557,5]
[352898944,1739394646539,-302.3099983,0.00016557,5]
[352898945,1739394646551,-427.98,0.00016557,5]
[352898946,1739394646563,-514.17681462,0.00016557,5]
[352898947,1739394646576,-282.9,0.00016557,5]
[352898948,1739394646588,-11768.82573503,0.00016557,5]
[352898949,1739394646600,-274.84569355,0.00016557,5]
[352898950,1739394646611,-10997.62435282,0.00016557,5]
[352898951,1739394646623,-501.71065382,0.00016557,5]
[352898952,1739394646635,-322.3,0.00016557,5]
[352898954,1739394646647,-84583.00454562,0.00016557,5]
[352898957,1739394646664,-8859.39332455,0.00016557,5]
[352898967,1739394646761,-1211.65,0.00016557,5]
[352898969,1739394646774,-297.16,0.00016557,5]
[352898971,1739394646786,-12338.0,0.00016557,5]
[352898974,1739394646798,-16800.12913654,0.00016557,5]
[352898975,1739394646810,-650.59750741,0.00016557,5]
[352898976,1739394646821,-1053.10199189,0.00016557,5]
[352898977,1739394646834,-1448.88637936,0.00016557,5]
[352898978,1739394674683,2500.0,8.851e-05,2]
[352898979,1739394723505,468.1718,8.973e-05,2]
[352898980,1739394733236,2301.5735,8.973e-05,2]
[352898987,1739394978863,430.5761,8.973e-05,2]
[352898988,1739394991115,9969.4239,8.973e-05,2]
[352898992,1739395508991,36430.5465,0.0001,2]
[352898993,1739395509023,4573.7748,0.0001,2]
[352899003,1739395629376,-500.0,9.9e-05,3]
[352899004,1739395631456,-1100.0,0.0001,3]
[352899011,1739395749181,-150.0,9.999e-05,2]